bitfinex-derivatives/quotes_SOLF0:USTF0_20250709
["timestamp","ask_amount","ask_price","bid_price","bid_amount"]
[1752104237404,3.54486575,157.62,157.57,6.3438]
[1752104238004,6.3431,157.6,157.57,6.3438]
[1752104238908,6.3427,157.61,157.53,5.82516575]
[1752104239101,3.54486575,157.6,157.53,2.2803]
[1752104239404,3.54486575,157.6,157.53,5.82516575]
[1752104239605,9.88806575,157.6,157.57,6.3438]
[1752104239801,3.54486575,157.6,157.53,5.82516575]
[1752104241006,9.88776575,157.6,157.57,6.3438]
[1752104241306,9.88776575,157.6,157.53,5.82516575]
[1752104242402,3.54486575,157.6,157.58,6.3437]
[1752104242702,3.54486575,157.6,157.53,5.82516575]
[1752104243004,9.88786575,157.6,157.57,6.3439]
[1752104243602,3.54486575,157.6,157.58,6.3436]
[1752104244607,9.88776575,157.6,157.58,6.3436]
[1752104244807,9.88776575,157.6,157.57,6.3439]
[1752104245808,6.3427,157.61,157.58,6.3437]
[1752104246010,9.88756575,157.61,157.58,6.3437]
[1752104246308,3.54486575,157.61,157.58,6.3437]
[1752104246711,6.3429,157.6,157.58,6.3437]
[1752104247407,9.88776575,157.61,157.58,6.3437]
[1752104247607,9.88776575,157.61,157.59,6.3433]
[1752104248310,9.88776575,157.61,157.58,6.3435]
[1752104248510,6.343,157.6,157.58,6.3435]
[1752104249602,9.88756575,157.61,157.58,6.3435]
[1752104251512,3.54486575,157.59,157.53,5.82516575]
[1752104252014,3.54486575,157.59,157.58,6.3437]
[1752104252707,9.88756575,157.61,157.58,6.3437]
[1752104253112,9.88756575,157.61,157.53,5.82516575]
[1752104253113,9.88756575,157.61,157.59,6.3433]
[1752104254509,3.5435464,157.6,157.51,17.63245473]
[1752104254814,3.5435464,157.52,157.46,17.63245473]
[1752104255117,3.5435464,157.48,157.46,6.3486]
[1752104255414,3.54584733,157.53,157.45,3.54584733]
[1752104255609,3.54584733,157.47,157.43,4.5267]
[1752104255914,3.54584733,157.47,157.43,2.2405]
[1752104256415,9.89414733,157.47,157.44,6.3491]
[1752104259716,3.54584733,157.49,157.43,2.2405]
[1752104261216,6.3478,157.48,157.45,6.3488]
[1752104261809,3.54584733,157.47,157.38,5.89444733]
[1752104262017,3.54584733,157.45,157.38,5.89444733]
[1752104263018,9.89494733,157.45,157.42,6.3498]
[1752104266223,3.54584733,157.45,157.43,6.3498]
[1752104267125,9.89484733,157.45,157.43,6.3498]
[1752104267325,9.89484733,157.45,157.42,6.35]
[1752104268324,3.54584733,157.45,157.43,6.3497]
[1752104271722,9.89494733,157.45,157.38,5.89444733]
[1752104272428,9.89494733,157.45,157.42,6.3501]
[1752104273226,6.3494,157.44,157.41,6.3503]
[1752104273529,2.125,157.51,157.38,5.89444733]
[1752104273722,9.89474733,157.46,157.38,5.89444733]
[1752104274029,9.89474733,157.46,157.43,6.3494]
[1752104275427,6.349,157.45,157.43,6.3494]
[1752104277734,6.349,157.45,157.38,5.89444733]
[1752104279128,6.349,157.45,157.43,6.3497]
[1752104281830,7.71058589,157.53,157.4,3.54584733]
[1752104282031,2.1812,157.56,157.48,3.54584733]
[1752104282235,551.54584733,157.57,157.5,3.54584733]
[1752104282435,551.54584733,157.57,157.53,6.3454]
[1752104282436,6.3448,157.56,157.53,6.3454]
[1752104282632,551.54584733,157.57,157.5,3.54584733]
[1752104282929,3.54584733,157.55,157.45,4.3607]
[1752104283135,3.54584733,157.55,157.47,3.54584733]
[1752104284133,6.3455,157.54,157.47,3.54584733]
[1752104285035,6.3458,157.53,157.47,3.54584733]
[1752104285235,3.54584733,157.53,157.46,3.54584733]
[1752104285533,9.89184733,157.53,157.5,6.3466]
[1752104285726,3.54584733,157.51,157.45,4.3607]
[1752104287533,6.3472,157.5,157.47,6.3479]
[1752104288936,3.54584733,157.49,157.42,3.54584733]
[1752104289137,3.54584733,157.49,157.4,7.91174733]
[1752104289332,3.54584733,157.47,157.4,7.91174733]
[1752104290234,3.54584733,157.47,157.45,6.3487]
[1752104291333,3.54584733,157.47,157.4,7.91174733]
[1752104291542,3.54584733,157.47,157.46,6.3486]
[1752104292338,9.89334733,157.49,157.46,6.3486]
[1752104293235,6.3478,157.48,157.46,6.3486]
[1752104294241,6.3478,157.48,157.45,6.3488]
[1752104294441,9.89404733,157.47,157.4,4.3659]
[1752104294838,3.54584733,157.47,157.44,6.3491]
[1752104296243,6.3487,157.46,157.44,6.3491]
[1752104298845,6.3487,157.46,157.43,6.3496]
[1752104299343,3.54584733,157.45,157.4,4.3659]
[1752104299539,3.54584733,157.43,157.4,2.2432]
[1752104299745,3.54584733,157.43,157.35,19.93695473]
[1752104299943,9.89564733,157.43,157.4,6.3506]
[1752104300146,9.89564733,157.43,157.36,5.79024733]
[1752104300544,3.54584733,157.43,157.36,5.79024733]
[1752104301544,3.54584733,157.43,157.41,6.3503]
[1752104301843,9.89564733,157.43,157.41,6.3503]
[1752104305350,9.89564733,157.43,157.36,2.2444]
[1752104305351,3.54584733,157.43,157.36,2.2444]
[1752104305648,3.54584733,157.41,157.36,2.2444]
[1752104305843,3.54584733,157.39,157.35,2.3045]
[1752104306050,3.54584733,157.39,157.32,3.54584733]
[1752104306246,3.54584733,157.39,157.36,6.3526]
[1752104306749,3.54584733,157.39,157.32,3.54584733]
[1752104307847,3.54584733,157.39,157.37,6.352]
[1752104308052,3.54584733,157.39,157.32,3.54584733]
[1752104309291,7.6216435,157.45,157.34,3.54584733]
[1752104309554,3.54584733,157.4,157.32,16.25404733]
[1752104310054,3.54584733,157.44,157.32,16.25404733]
[1752104310255,3.54584733,157.4,157.32,16.25404733]
[1752104310555,3.54584733,157.4,157.32,3.54584733]
[1752104310756,6.3516,157.39,157.36,6.3522]
[1752104310957,6.3516,157.39,157.32,3.54584733]
[1752104311256,9.89704733,157.4,157.32,3.54584733]
[1752104311857,9.89704733,157.4,157.37,6.3518]
[1752104315561,3.54584733,157.44,157.31,2.1573]
[1752104315562,3.54584733,157.38,157.31,2.1573]
[1752104316264,3.54584733,157.36,157.31,2.1573]
[1752104316765,6.3532,157.35,157.32,6.354]
[1752104318060,9.89924733,157.34,157.31,8.5117]
[1752104318262,9.89924733,157.34,157.3,2.2866]
[1752104318459,9.89924733,157.34,157.31,6.3545]
[1752104319062,9.89924733,157.34,157.32,6.3542]
[1752104319364,9.89924733,157.34,157.27,3.54584733]
[1752104319666,6.3539,157.33,157.31,6.3543]
[1752104319964,3.54584733,157.34,157.26,5.77194733]
[1752104320165,6.354,157.33,157.3,6.3546]
[1752104320364,6.354,157.33,157.26,5.77194733]
[1752104322064,6.354,157.33,157.31,6.3545]
[1752104324162,9.89934733,157.34,157.31,6.3545]
[1752104325773,3.54584733,157.34,157.32,6.3542]
[1752104325973,684.85722334,157.41,157.32,6.3542]
[1752104326174,3.54584733,157.34,157.32,6.3542]
[1752104328777,3.54584733,157.38,157.3,3.54584733]
[1752104328975,3.54584733,157.38,157.31,2.2018]
[1752104329178,3.54584733,157.38,157.32,3.54584733]
[1752104329478,680.27532334,157.41,157.31,2.2018]
[1752104329479,3.54584733,157.36,157.31,2.2018]
[1752104330178,9.89854733,157.36,157.31,2.2018]
[1752104330778,6.3532,157.35,157.33,6.3535]
[1752104331082,3.54584733,157.36,157.28,3.54584733]
[1752104331277,3.54584733,157.34,157.31,6.3544]
[1752104331471,9.89944733,157.34,157.31,6.3544]
[1752104331675,9.89944733,157.34,157.28,3.54584733]
[1752104331676,3.54584733,157.34,157.28,3.54584733]
[1752104332072,3.54584733,157.34,157.27,5.85124733]
[1752104332275,3.54584733,157.32,157.27,2.3054]
[1752104332684,3.54584733,157.32,157.31,6.3546]
[1752104337580,3.54584733,157.34,157.32,6.354]
[1752104338182,3.54584733,157.34,157.33,6.3538]
[1752104338486,3.54584733,157.34,157.27,5.85124733]
[1752104339885,3.54584733,157.34,157.32,6.354]
[1752104341182,3.54584733,157.34,157.27,2.3054]
[1752104341383,3.54584733,157.32,157.27,2.3054]
[1752104341586,3.54584733,157.34,157.27,2.3054]
[1752104342384,3.54584733,157.32,157.29,6.3552]
[1752104342789,9.90024733,157.32,157.29,6.3552]
[1752104343189,3.54584733,157.32,157.27,2.3054]
[1752104343390,9.90024733,157.32,157.27,2.3054]
[1752104344190,9.90024733,157.32,157.3,6.3549]
[1752104344388,3.54584733,157.32,157.27,2.3054]
[1752104345992,9.90034733,157.32,157.27,2.3054]
[1752104346586,9.90034733,157.32,157.29,6.3552]
[1752104347888,9.90034733,157.32,157.3,6.3549]
[1752104348192,3.54584733,157.32,157.3,6.3549]
[1752104348388,4.4255,157.39,157.28,3.54584733]
[1752104348589,3.54584733,157.36,157.31,6.3546]
[1752104348786,3.54584733,157.34,157.27,2.3054]
[1752104349092,9.89944733,157.34,157.31,6.3543]
[1752104349484,3.54584733,157.34,157.31,6.3543]
[1752104350993,6.3538,157.33,157.31,6.3543]
[1752104352094,3.54584733,157.35,157.32,6.3539]
[1752104352694,9.89914733,157.35,157.32,6.3539]
[1752104352995,3.54584733,157.35,157.32,6.3539]
[1752104353394,6.3534,157.34,157.32,6.3539]
[1752104355494,3.54584733,157.35,157.32,6.3539]
[1752104356797,3.54584733,157.35,157.28,3.54584733]
[1752104356992,680.27532334,157.41,157.3,3.54584733]
[1752104357199,683.82117067,157.41,157.33,3.54584733]
[1752104357495,680.27532334,157.41,157.35,3.54584733]
[1752104357696,686.62592334,157.41,157.35,3.54584733]
[1752104358094,137.90592334,157.41,157.35,3.54584733]
[1752104358491,6.3506,157.41,157.35,3.54584733]
[1752104359300,3.54584733,157.38,157.34,2.2282]
[1752104359702,9.89764733,157.38,157.35,6.3529]
[1752104366000,6.3516,157.39,157.34,2.2282]
[1752104367202,6.3516,157.39,157.36,6.3524]
[1752104367407,9.89714733,157.4,157.34,2.2282]
[1752104367608,3.54584733,157.4,157.34,2.2282]
[1752104368406,6.3516,157.39,157.36,6.3523]
[1752104370308,6.3516,157.39,157.37,6.3521]
[1752104373309,6.3516,157.39,157.36,6.3524]
[1752104374507,6.3516,157.39,157.37,6.3522]
[1752104375513,6.3518,157.38,157.34,2.2282]
[1752104376011,6.3518,157.38,157.35,6.3529]
[1752104376604,6.3518,157.38,157.36,6.3525]
[1752104377001,6.3515,157.39,157.34,2.2282]
[1752104377207,6.3515,157.39,157.36,6.3522]
[1752104377408,6.3518,157.38,157.36,6.3522]
[1752104378907,9.89764733,157.38,157.35,6.3528]
[1752104379806,9.89764733,157.38,157.36,6.3526]
[1752104380202,9.89764733,157.38,157.34,2.2282]
[1752104380608,9.89764733,157.38,157.35,6.3527]
[1752104382005,9.89764733,157.38,157.36,6.3526]
[1752104382612,6.3518,157.38,157.36,6.3526]
[1752104383419,3.54584733,157.39,157.35,6.3528]
[1752104384108,6.352,157.38,157.35,6.3528]
[1752104385210,6.352,157.38,157.36,6.3526]
[1752104389920,9.89744733,157.39,157.37,6.3522]
[1752104392718,3.54584733,157.39,157.38,6.3518]
[1752104393018,3.54584733,157.45,157.37,3.54584733]
[1752104393220,7.60090231,157.44,157.39,3.54584733]
[1752104393425,3.54584733,157.45,157.39,3.54584733]
[1752104393923,6.3496,157.44,157.41,6.3502]
[1752104395322,6.3499,157.43,157.41,6.3502]
[1752104396524,6.3502,157.42,157.4,6.3508]
[1752104396722,3.54584733,157.43,157.37,3.54584733]
[1752104397122,6.3505,157.42,157.39,6.3511]
[1752104397723,6.3505,157.42,157.4,6.3509]
[1752104398120,6.3501,157.43,157.4,6.3509]
[1752104398620,6.3502,157.42,157.4,6.3509]
[1752104400525,6.35,157.43,157.37,3.54584733]
[1752104400832,3.54584733,157.42,157.35,3.54584733]
[1752104402124,6.351,157.4,157.38,6.3517]
[1752104402718,6.351,157.4,157.34,2.2282]
[1752104402719,3.54584733,157.4,157.34,2.2282]
[1752104402925,3.54584733,157.38,157.34,2.2282]
[1752104403622,9.89784733,157.38,157.35,6.3528]
[1752104404020,9.89784733,157.38,157.34,2.2282]
[1752104405030,3.54584733,157.38,157.36,6.3524]
[1752104405328,3.54584733,157.38,157.34,2.2282]
[1752104405523,9.89784733,157.38,157.36,6.3526]
[1752104414936,9.89784733,157.38,157.35,6.3528]
[1752104415636,9.89784733,157.38,157.36,6.3526]
[1752104417435,6.352,157.38,157.36,6.3526]
[1752104419639,6.352,157.38,157.35,6.3528]
[1752104420339,6.352,157.38,157.36,6.3525]
[1752104421441,6.3523,157.37,157.35,6.3529]
[1752104423444,6.3526,157.36,157.34,6.3532]
[1752104423944,3.54584733,157.39,157.34,6.3532]
[1752104424244,6.352,157.38,157.34,6.3532]
[1752104424541,3.54584733,157.39,157.34,6.3532]
[1752104424746,3.54584733,157.39,157.35,6.3529]
[1752104425941,6.3519,157.38,157.35,6.3529]
[1752104426843,2.27349168,157.36,157.35,6.3529]
[1752104432648,2.27349168,157.36,157.34,6.3532]
[1752104432842,7.60029101,157.42,157.35,2.2727376]
[1752104433146,2.2727376,157.4,157.35,2.2727376]
[1752104433545,2.2727376,157.4,157.38,6.3514]
[1752104434446,2.27255244,157.4,157.38,6.3514]
[1752104434746,8.62355244,157.4,157.37,6.352]
[1752104434946,6.351,157.4,157.37,6.352]
[1752104435442,6.174e-05,157.45,157.39,3.55016107]
[1752104435743,11.862736,157.52,157.44,3.54537052]
[1752104436045,3.54537052,157.53,157.45,15.39806241]
[1752104436242,548.78,157.55,157.45,3.54537052]
[1752104436243,3.54537052,157.54,157.45,3.54537052]
[1752104436644,6.3462,157.52,157.49,6.3471]
[1752104436844,3.54537052,157.54,157.49,6.3471]
[1752104437349,6.3462,157.52,157.47,9.89337052]
[1752104437754,6.3462,157.52,157.47,3.54537052]
[1752104438549,6.3462,157.52,157.48,6.3477]
[1752104438750,6.3462,157.52,157.47,3.54537052]
[1752104439048,6.3466,157.51,157.47,3.54537052]
[1752104439249,3.54537052,157.55,157.47,9.89327052]
[1752104440348,3.54537052,157.55,157.47,3.54537052]
[1752104440654,3.54537052,157.53,157.47,3.54537052]
[1752104441050,6.3472,157.5,157.47,3.54537052]
[1752104442557,184.06,157.57,157.49,3.54537052]
[1752104442849,3.54537052,157.62,157.54,3.54537052]
[1752104443052,6.344,157.58,157.54,9.89047052]
[1752104443654,6.3442,157.57,157.54,9.89047052]
[1752104444057,3.54537052,157.58,157.51,3.54537052]
[1752104444753,6.3456,157.54,157.51,3.54537052]
[1752104445751,3.54537052,157.52,157.45,548.46]
[1752104445954,3.54537052,157.6,157.48,3.54537052]
[1752104446255,6.3452,157.55,157.51,6.3463]
[1752104446553,3.54537052,157.57,157.51,6.3463]
[1752104446754,3.54537052,157.57,157.5,6.3468]
[1752104447055,3.54537052,157.6,157.52,3.54537052]
[1752104447252,3.54537052,157.6,157.53,4.4907]
[1752104447451,3.54537052,157.6,157.53,10.8364]
[1752104448259,3.54537052,157.58,157.53,4.4907]
[1752104448759,6.3448,157.56,157.53,4.4907]
[1752104449552,6.345,157.55,157.53,4.4907]
[1752104449756,3.54537052,157.58,157.53,4.4907]
[1752104449956,3.54537052,157.58,157.53,2.3431]
[1752104450359,6.3452,157.55,157.53,2.3431]
[1752104450758,3.54537052,157.58,157.53,2.3431]
[1752104451554,553.2113,157.63,157.5,3.54537052]
[1752104451759,3.54537052,157.57,157.5,3.54537052]
[1752104451954,3.54537052,157.55,157.48,5.77587052]
[1752104452157,3.54537052,157.55,157.49,6.3471]
[1752104452760,6.3464,157.52,157.5,6.3469]
[1752104453259,3.54537052,157.56,157.5,6.3469]
[1752104453759,6.3461,157.53,157.5,6.3469]
[1752104454660,6.3461,157.52,157.5,6.3469]
[1752104455258,6.3461,157.52,157.49,9.89257052]
[1752104455461,6.3459,157.53,157.49,3.54537052]
[1752104456264,6.3462,157.52,157.5,6.3468]
[1752104457667,3.54537052,157.54,157.48,2.2305]
[1752104457962,3.54537052,157.52,157.47,2.2777]
[1752104458162,3.54537052,157.56,157.47,5.82307052]
[1752104458360,3.54537052,157.56,157.49,3.54537052]
[1752104458767,6.3456,157.54,157.49,3.54537052]
[1752104459271,6.3456,157.54,157.51,6.3465]
[1752104459666,6.3459,157.53,157.49,3.54537052]
[1752104459975,6.3459,157.53,157.5,6.3467]
[1752104461669,6.3462,157.52,157.49,9.89257052]
[1752104461869,3.54537052,157.52,157.44,3.54537052]
[1752104462066,4.406,157.55,157.42,5.77487052]
[1752104462269,3.54537052,157.49,157.45,6.3487]
[1752104462873,6.348,157.48,157.45,6.3487]
[1752104463370,6.3482,157.47,157.44,6.3492]
[1752104463574,3.54537052,157.49,157.42,2.2295]
[1752104464468,6.3484,157.47,157.44,6.3491]
[1752104465468,6.3486,157.46,157.43,6.3496]
[1752104465674,3.54537052,157.47,157.4,5.81857052]
[1752104466675,3.54537052,157.45,157.4,2.2732]
[1752104466876,3.54537052,157.43,157.38,2.1939]
[1752104467576,6.3504,157.42,157.39,6.3511]
[1752104467776,3.54537052,157.43,157.39,6.3511]
[1752104467976,3.54537052,157.43,157.38,2.1939]
[1752104468176,9.89537052,157.43,157.4,6.351]
[1752104468379,9.89537052,157.43,157.38,2.1939]
[1752104469878,9.89537052,157.43,157.39,6.351]
[1752104470478,3.54537052,157.43,157.4,6.351]
[1752104470880,3.54537052,157.43,157.39,6.3512]
[1752104471080,9.89537052,157.43,157.39,6.3512]
[1752104472182,6.3502,157.42,157.39,6.3512]
[1752104472582,3.54537052,157.43,157.38,8.5455]
[1752104472782,6.3513,157.4,157.34,3.54537052]
[1752104472977,3.54537052,157.41,157.33,4.4991]
[1752104473284,3.54537052,157.39,157.3,3.54537052]
[1752104473781,3.54537052,157.39,157.32,6.3542]
[1752104474083,3.54537052,157.39,157.3,3.54537052]
[1752104474279,6.3529,157.36,157.3,3.54537052]
[1752104475081,371.2284,157.43,157.34,3.54537052]
[1752104475381,372.46537052,157.43,157.39,6.3513]
[1752104475581,6.3506,157.42,157.39,6.3513]
[1752104477584,6.3506,157.42,157.38,6.3516]
[1752104478585,6.3506,157.42,157.39,6.3514]
[1752104479688,6.3506,157.41,157.38,6.3516]
[1752104483190,6.3506,157.41,157.37,6.352]
[1752104483488,6.3506,157.41,157.36,3.54537052]
[1752104484088,6.3506,157.41,157.38,6.3518]
[1752104488192,6.351,157.4,157.37,6.352]
[1752104489092,6.3525,157.37,157.3,62.0]
[1752104489290,6.3525,157.37,157.29,26.74139189]
[1752104489291,3.54537052,157.41,157.32,3.54537052]
[1752104489488,3.54537052,157.41,157.29,14.8887]
[1752104489489,3.54537052,157.41,157.34,3.54537052]
[1752104489793,3.54537052,157.41,157.36,6.3523]
[1752104490095,3.54537052,157.41,157.33,5.80387052]
[1752104490294,6.3518,157.38,157.35,6.3528]
[1752104490795,3.54537052,157.41,157.34,6.3533]
[1752104490991,3.54537052,157.39,157.34,6.3533]
[1752104491488,3.54537052,157.39,157.29,2.178]
[1752104491795,3.54537052,157.39,157.31,3.54537052]
[1752104491996,6.3526,157.37,157.31,3.54537052]
[1752104492391,3.54537052,157.39,157.33,6.3536]
[1752104493600,3.54537052,157.39,157.31,3.54537052]
[1752104493889,2.2018,157.42,157.29,66.4397]
[1752104494091,3.54537052,157.41,157.35,6.3528]
[1752104494491,6.3516,157.39,157.33,3.54537052]
[1752104494692,6.3516,157.39,157.36,6.3522]
[1752104494891,6.3516,157.39,157.33,3.54537052]
[1752104495089,6.3516,157.39,157.36,6.3524]
[1752104495594,3.54537052,157.39,157.32,3.54537052]
[1752104495788,3.54537052,157.39,157.34,6.3533]
[1752104495993,6.3524,157.37,157.34,6.3533]
[1752104498596,6.3519,157.38,157.35,6.353]
[1752104499196,3.54537052,157.39,157.35,6.353]
[1752104500396,6.3519,157.38,157.35,6.353]
[1752104501596,6.3522,157.37,157.34,6.3532]
[1752104501788,6.3522,157.37,157.32,3.54537052]
[1752104504096,6.3522,157.37,157.35,6.353]
[1752104504999,3.54537052,157.39,157.34,6.3533]
[1752104505397,3.54537052,157.39,157.32,3.54537052]
[1752104505598,6.3524,157.37,157.34,6.3534]
[1752104505999,6.3524,157.37,157.32,3.54537052]
[1752104507800,6.3524,157.37,157.35,6.3527]
[1752104509600,6.3519,157.38,157.36,6.3526]
[1752104510101,6.3519,157.38,157.32,15.39806241]
[1752104510403,6.3519,157.38,157.35,6.3527]
[1752104511602,6.3522,157.37,157.35,6.3527]
[1752104512102,3.54537052,157.39,157.35,6.3527]
[1752104512401,6.3522,157.37,157.35,6.3527]
[1752104513101,6.352,157.38,157.35,6.3527]
[1752104513401,6.352,157.38,157.33,11.85269189]
[1752104513601,3.54537052,157.39,157.33,11.85269189]
[1752104513801,3.54537052,157.39,157.34,6.3533]
[1752104514003,3.54537052,157.39,157.33,11.85269189]
[1752104515003,3.54537052,157.39,157.32,11.85269189]
[1752104515204,3.54537052,157.37,157.32,11.85269189]
[1752104515503,3.54537052,157.38,157.34,6.3531]
[1752104515803,3.54537052,157.38,157.31,11.85269189]
[1752104516001,3.54537052,157.38,157.33,6.3536]
[1752104516504,6.3532,157.35,157.33,6.3536]
[1752104517396,6.3534,157.34,157.32,18.20669189]
[1752104517699,3.54537052,157.38,157.32,18.20669189]
[1752104518001,6.3533,157.35,157.32,18.20669189]
[1752104520101,3.54537052,157.36,157.32,11.85269189]
[1752104520408,3.54537052,157.36,157.3,11.85269189]
[1752104520607,3.54537052,157.36,157.29,16.29239189]
[1752104521107,6.3538,157.34,157.31,6.3544]
[1752104521308,3.54537052,157.36,157.29,16.29239189]
[1752104521707,3.54537052,157.36,157.3,6.3548]
[1752104522110,6.354,157.33,157.3,6.3548]
[1752104523807,3.54537052,157.34,157.29,2.178]
[1752104524116,3.54537052,157.32,157.25,14.17089189]
[1752104524515,3.54537052,157.32,157.25,2.3182]
[1752104524909,6.355,157.3,157.27,6.3562]
[1752104525405,6.3553,157.3,157.27,6.3562]
[1752104525714,3.54537052,157.32,157.26,6.3565]
[1752104525908,3.54537052,157.32,157.25,2.3182]
[1752104526106,6.355,157.3,157.25,2.3182]
[1752104526515,370.7121,157.36,157.28,6.3556]
[1752104526714,3.54537052,157.33,157.25,5.86357052]
[1752104527313,6.3553,157.3,157.27,6.356]
[1752104527813,6.3549,157.31,157.27,6.3562]
[1752104528013,6.3549,157.31,157.25,5.86357052]
[1752104528214,6.3549,157.31,157.28,6.3556]
[1752104528813,6.355,157.3,157.25,5.86357052]
[1752104529013,6.355,157.3,157.27,6.356]
[1752104529712,3.54537052,157.32,157.26,6.3566]
[1752104529915,3.54537052,157.32,157.25,2.3182]
[1752104530110,6.3552,157.3,157.25,2.3182]
[1752104531319,6.3554,157.29,157.25,2.3182]
[1752104532022,6.3559,157.28,157.25,2.3182]
[1752104532313,3.54537052,157.3,157.21,3.54537052]
[1752104532621,3.54537052,157.28,157.19,3.54537052]
[1752104533014,6.357,157.26,157.19,3.54537052]
[1752104533517,3.54537052,157.28,157.19,3.54537052]
[1752104534320,6.3568,157.26,157.23,6.3578]
[1752104534514,3.54537052,157.28,157.19,3.54537052]
[1752104534716,6.3573,157.25,157.22,6.358]
[1752104534916,3.54537052,157.28,157.19,3.54537052]
[1752104535216,570.50486932,157.35,157.18,11.85269189]
[1752104535217,561.6468,157.35,157.18,11.85269189]
[1752104535420,561.6468,157.35,157.17,65.31695347]
[1752104535421,6.3563,157.27,157.24,6.3572]
[1752104537923,9.90137052,157.28,157.24,6.3572]
[1752104539119,9.90137052,157.28,157.25,6.357]
[1752104540624,3.54537052,157.33,157.25,3.54537052]
[1752104541123,6.3544,157.32,157.29,6.3553]
[1752104541524,3.54537052,157.33,157.31,6.3545]
[1752104541823,552.48537052,157.35,157.27,3.54537052]
[1752104542124,6.3544,157.32,157.29,6.3553]
[1752104544124,6.3544,157.32,157.26,3.54537052]
[1752104544324,6.354,157.33,157.26,3.54537052]
[1752104544624,6.354,157.33,157.3,6.3549]
[1752104545022,552.48537052,157.35,157.26,3.54537052]
[1752104545224,548.94,157.35,157.28,3.54537052]
[1752104545420,548.94,157.35,157.29,2.2642]
[1752104545625,374.8129,157.36,157.33,6.3534]
[1752104546021,374.8129,157.36,157.3,3.54537052]
[1752104546827,374.8129,157.36,157.33,6.3536]
[1752104551731,368.46,157.36,157.34,6.3534]
[1752104552638,374.8128,157.36,157.34,6.3534]
[1752104554238,6.353,157.35,157.33,6.3536]
[1752104554440,368.46,157.36,157.33,6.3536]
[1752104554843,374.8128,157.36,157.33,6.3536]
[1752104555336,6.3532,157.35,157.3,3.54537052]
[1752104555541,368.46,157.36,157.3,3.54537052]
[1752104556044,374.8128,157.36,157.33,6.3535]
[1752104557537,368.52,157.36,157.32,3.54537052]
[1752104557743,368.52,157.38,157.34,3.54537052]
[1752104558040,368.52,157.38,157.32,3.54537052]
[1752104558440,6.3524,157.37,157.35,6.3529]
[1752104558746,368.52,157.38,157.32,3.54537052]
[1752104558934,6.3528,157.36,157.33,6.3536]
[1752104560946,368.48,157.37,157.32,3.54537052]
[1752104561147,368.48,157.37,157.34,3.54537052]
[1752104561647,368.48,157.39,157.34,3.54537052]
[1752104563746,368.48,157.39,157.37,6.352]
[1752104564951,368.48,157.39,157.38,6.3518]
[1752104565450,368.48,157.39,157.37,6.352]
[1752104565851,368.48,157.39,157.34,3.54537052]
[1752104566747,368.48,157.39,157.37,6.352]
[1752104567252,374.8314,157.39,157.37,6.352]
[1752104567754,368.48,157.39,157.37,6.352]
[1752104574058,374.8314,157.39,157.37,6.352]
[1752104575154,374.8314,157.39,157.36,6.3525]
[1752104575360,368.48,157.39,157.32,3.54537052]
[1752104575757,6.3524,157.37,157.35,6.3529]
[1752104575957,368.36,157.36,157.32,3.54537052]
[1752104576159,368.36,157.36,157.3,5.88007052]
[1752104576460,374.7127,157.36,157.3,5.88007052]
[1752104577261,6.353,157.35,157.3,5.88007052]
[1752104578762,6.353,157.35,157.32,6.3539]
[1752104579459,6.353,157.35,157.33,6.3537]
[1752104580464,374.7128,157.36,157.33,6.3537]
[1752104580863,6.353,157.35,157.33,6.3537]
[1752104583664,374.7128,157.36,157.33,6.3537]
[1752104584060,374.7128,157.36,157.34,6.3533]
[1752104584466,368.36,157.36,157.3,5.88007052]
[1752104584869,368.36,157.36,157.32,2.27351953]
[1752104585367,368.36,157.36,157.3,2.3347]
[1752104585368,374.7127,157.36,157.34,6.3532]
[1752104586161,368.36,157.36,157.34,6.3532]
[1752104587066,370.63351953,157.36,157.34,6.3532]
[1752104588272,376.98621953,157.36,157.34,6.3532]
[1752104588473,370.63351953,157.36,157.33,6.3536]
[1752104589574,376.98641953,157.36,157.33,6.3536]
[1752104590179,6.353,157.35,157.33,6.3536]
[1752104590474,370.63351953,157.36,157.32,6.354]
[1752104590674,370.63351953,157.36,157.3,2.3347]